bitfinex/quotes_SOLUSD_20220208
["timestamp","ask_amount","ask_price","bid_price","bid_amount"]
[1644296162866,23.95986723,117.83,117.77,54.24927805]
[1644296164270,0.03916723,117.83,117.77,54.24927805]
[1644296164471,12.77566723,117.84,117.77,54.24927805]
[1644296164670,0.03916723,117.83,117.77,54.24927805]
[1644296165072,12.77566723,117.84,117.77,54.24927805]
[1644296165673,13.02566723,117.84,117.77,54.24927805]
[1644296166273,0.28916723,117.84,117.77,60.24927805]
[1644296166479,0.03916723,117.84,117.77,60.49927805]
[1644296166681,2.44252414,117.87,117.78,24.2963]
[1644296166875,0.03916723,117.85,117.8,12.7314]
[1644296167075,0.03916723,117.86,117.81,43.64499003]
[1644296167277,0.03916723,117.87,117.81,43.58719031]
[1644296168575,0.03916723,117.87,117.82,12.7309]
[1644296168975,0.03916723,117.87,117.82,18.7309]
[1644296169177,0.03916723,117.87,117.82,12.7309]
[1644296169378,0.03916723,117.89,117.82,12.7309]
[1644296169576,0.03916723,117.89,117.83,46.26504153]
[1644296169776,4.85399947,117.9,117.84,12.7284]
[1644296169976,0.03916723,117.89,117.85,38.24777967]
[1644296170176,4.85399947,117.9,117.85,38.24777967]
[1644296170377,5.06483224,117.9,117.85,38.24777967]
[1644296170778,2.65335691,117.9,117.85,38.24777967]
[1644296171380,0.25,117.9,117.85,38.24777967]
[1644296171783,151.34835691,117.91,117.85,50.97557967]
[1644296172581,115.75335691,117.91,117.85,50.97557967]
[1644296172878,150.17464602,117.91,117.85,50.97557967]
[1644296173278,147.77128911,117.91,117.85,50.97557967]
[1644296173479,113.38916723,117.91,117.85,50.97557967]
[1644296174782,126.11786723,117.91,117.85,50.97557967]
[1644296175484,0.03916723,117.91,117.85,50.97557967]
[1644296176086,3.61216091,117.96,117.85,57.22557967]
[1644296176287,12.26,117.97,117.88,12.7228]
[1644296176288,2.40297423,117.97,117.88,12.7228]
[1644296176486,0.03898785,117.92,117.89,12.26]
[1644296176686,0.03898785,117.96,117.9,3.03219997]
[1644296176888,45.29516972,117.98,117.91,44.93545496]
[1644296177087,0.03898785,117.97,117.91,44.93545496]
[1644296177485,0.03898785,117.98,117.91,44.93545496]
[1644296177686,115.50297423,118.0,117.91,44.93545496]
[1644296177687,0.03898785,117.99,117.91,44.93545496]
[1644296177891,2.16904115,117.99,117.91,44.93545496]
[1644296178087,46.92529198,117.98,117.91,44.93545496]
[1644296178287,0.03898785,117.97,117.91,44.93545496]
[1644296178486,2.16904115,117.97,117.91,44.93545496]
[1644296178688,0.03898785,117.97,117.91,44.93545496]
[1644296178885,0.28898785,117.97,117.91,44.93545496]
[1644296179087,0.03898785,117.98,117.91,44.93545496]
[1644296179387,0.03898785,117.99,117.91,44.93545496]
[1644296179786,36.73742324,117.99,117.91,44.93545496]
[1644296180387,38.86747654,117.99,117.91,44.93545496]
[1644296180988,38.86747654,117.99,117.88,35.6616]
[1644296181193,62.25947654,117.99,117.88,35.6616]
[1644296181608,64.66245077,117.99,117.88,35.6616]
[1644296182010,64.66245077,117.99,117.89,48.48579511]
[1644296182606,64.91245077,117.99,117.89,48.48579511]
[1644296182808,77.63415077,117.99,117.89,48.48579511]
[1644296183009,2.39503522,117.98,117.89,48.48579511]
[1644296183306,46.62550212,117.97,117.89,48.48579511]
[1644296183707,12.7255,117.96,117.85,49.6228]
[1644296183907,0.03898785,117.95,117.83,12.26]
[1644296184107,0.03898785,117.95,117.82,28.5703]
[1644296184608,41.85888633,117.95,117.83,36.85148783]
[1644296184807,0.03898785,117.94,117.83,49.57958783]
[1644296185010,0.03898785,117.94,117.83,68.08958783]
[1644296185506,0.03898785,117.94,117.83,67.83958783]
[1644296186610,35.88659943,117.93,117.83,67.83958783]
[1644296186810,0.03898785,117.92,117.83,67.83958783]
[1644296187214,0.03898785,117.92,117.83,61.83958783]
[1644296187611,0.03898785,117.92,117.83,67.83958783]
[1644296188213,0.03898785,117.92,117.83,68.08958783]
[1644296191716,0.03898785,117.92,117.84,24.0941]
[1644296191917,0.03898785,117.95,117.86,12.7242]
[1644296192219,0.03898785,117.95,117.86,35.5114]
[1644296192423,37.89794666,117.95,117.87,40.31173756]
[1644296192621,0.03898785,117.94,117.87,40.31173756]
[1644296193723,0.03898785,117.94,117.87,53.03603756]
[1644296197429,0.03898785,117.95,117.88,13.87484125]
[1644296197633,0.03898785,117.95,117.88,19.87484125]
[1644296197831,2.44196208,117.97,117.9,12.7205]
[1644296198132,0.03898785,117.94,117.9,12.7205]
[1644296198332,43.61650446,117.97,117.91,40.8088524]
[1644296198530,48.42860748,117.97,117.91,40.8088524]
[1644296198731,45.98049084,117.97,117.91,40.8088524]
[1644296198931,2.40297423,117.97,117.91,53.5292524]
[1644296199132,4.85109615,117.98,117.91,67.65409365]
[1644296199333,0.03898785,117.97,117.91,67.65409365]
[1644296199531,0.03898785,117.98,117.91,73.65409365]
[1644296202032,0.03898785,117.99,117.93,12.7142]
[1644296202232,0.03898785,117.99,117.94,12.26]
[1644296202432,2.40297423,118.01,117.94,12.26]
[1644296202433,0.03898785,118.0,117.94,12.26]
[1644296202635,2.44196208,118.01,117.95,40.18728596]
[1644296202832,0.03898785,118.0,117.95,52.44728596]
[1644296203033,5.10054669,118.01,117.95,52.44728596]
[1644296203433,2.69196208,118.01,117.95,52.44728596]
[1644296203632,2.44196208,118.01,117.95,52.44728596]
[1644296203834,2.44196208,118.01,117.95,65.16178596]
[1644296205240,2.69196208,118.01,117.95,65.16178596]
[1644296206637,50.64455873,118.01,117.95,65.16178596]
[1644296207039,50.64455873,118.01,117.95,40.18728596]
[1644296207239,47.23214151,117.99,117.95,40.18728596]
[1644296207440,4.85144506,118.0,117.95,40.18728596]
[1644296207669,2.40297423,117.99,117.95,40.18728596]
[1644296208041,2.40297423,118.0,117.95,40.18728596]
[1644296208240,2.40297423,118.0,117.95,52.90388596]
[1644296208639,43.19643477,118.0,117.95,52.90388596]
[1644296209038,2.40297423,118.0,117.95,52.90388596]
[1644296210245,4.81202855,118.0,117.95,52.90388596]
[1644296213242,2.40297423,118.01,117.95,65.41388596]
[1644296213441,2.40297423,118.01,117.95,71.41388596]
[1644296213641,0.03898785,118.02,117.95,71.41388596]
[1644296213843,0.03898785,118.03,117.95,71.41388596]
[1644296214044,0.03898785,118.02,117.95,71.41388596]
[1644296214243,0.03898785,118.03,117.95,71.41388596]
[1644296214844,113.1,118.05,117.96,66.0]
[1644296215046,3.61216091,118.07,117.99,12.7105]
[1644296215351,22.6304,118.11,118.0,12.26]
[1644296215558,4.03406683,118.14,118.0,51.45735186]
[1644296215745,4.03406683,118.14,118.01,1.61484125]
[1644296215951,2.40229488,118.13,118.02,54.6096]
[1644296216147,2.40229488,118.13,118.02,60.6096]
[1644296216344,2.40229488,118.13,118.03,12.7065]
[1644296216545,44.91107972,118.12,118.04,52.44728596]
[1644296216944,44.91107972,118.12,118.04,58.44728596]
[1644296217751,44.91107972,118.12,118.04,71.15278596]
[1644296217949,45.16107972,118.12,118.04,18.26]
[1644296218153,47.29113302,118.12,118.04,12.26]
[1644296218949,59.99983302,118.12,118.03,37.61195559]
[1644296219149,59.99983302,118.12,118.03,43.61195559]
[1644296219350,59.99983302,118.12,118.03,37.61195559]
[1644296219650,59.99983302,118.12,118.01,6.0]
[1644296219850,59.99983302,118.12,118.01,18.26]
[1644296220050,2.39647888,118.11,118.01,12.26]
[1644296220250,12.7109,118.1,118.01,12.26]
[1644296220451,41.48441084,118.09,118.01,53.34650836]
[1644296220653,43.61446414,118.09,118.01,53.34650836]
[1644296221255,41.48441084,118.09,118.01,53.34650836]
[1644296222254,41.73441084,118.09,118.01,53.34650836]
[1644296222454,0.25,118.09,118.01,53.34650836]
[1644296222668,12.7109,118.1,118.02,1.61484125]
[1644296222869,12.9609,118.1,118.01,59.34650836]
[1644296223371,0.25,118.1,118.01,72.05540836]
[1644296223768,34.58087243,118.11,118.01,72.05540836]
[1644296224170,36.71092573,118.11,118.01,72.05540836]
[1644296224669,34.58087243,118.11,118.01,72.05540836]
[1644296225169,0.25,118.11,118.01,72.05540836]
[1644296225370,46.3435,118.12,118.02,1.61480546]
[1644296225568,46.3435,118.12,118.02,14.32270546]
[1644296225770,46.3435,118.12,118.02,32.83270546]
[1644296226170,46.3435,118.12,118.03,36.68328821]
[1644296226370,87.30592699,118.12,118.03,36.93328821]
[1644296226570,87.30592699,118.12,118.03,42.93328821]
[1644296226769,87.30592699,118.12,118.03,42.68328821]
[1644296227371,87.55592699,118.12,118.03,42.68328821]
[1644296227771,87.55592699,118.12,118.03,55.38958821]
[1644296228271,46.5935,118.12,118.03,55.38958821]
[1644296228475,0.25,118.12,118.03,57.25439367]
[1644296228673,0.42190592,118.14,118.04,12.26]
[1644296228874,0.42190592,118.14,118.06,12.7037]
[1644296229276,40.77524464,118.14,118.07,41.08650836]
[1644296229473,0.42190592,118.14,118.07,41.08650836]
[1644296230675,0.03895438,118.13,118.07,66.39450836]
[1644296230875,0.03895438,118.14,118.08,73.26]
[1644296231080,0.03895439,118.13,118.08,104.74420546]
[1644296231379,0.42496962,118.22,118.08,104.74420546]
[1644296231380,0.42496962,118.22,118.09,1.61480546]
[1644296231576,0.42496962,118.22,118.1,48.52138229]
[1644296231776,0.42496962,118.22,118.1,59.18838229]
[1644296231976,0.42496962,118.22,118.13,12.6931]
[1644296232180,0.42496962,118.22,118.14,53.34650836]
[1644296232577,0.42496962,118.22,118.14,59.59650836]
[1644296232977,0.42496962,118.22,118.15,12.6935]
[1644296233177,0.42496962,118.22,118.15,18.6935]
[1644296233379,0.42496962,118.22,118.15,6.0]
[1644296233778,2.55502292,118.22,118.14,53.34650836]
[1644296233978,47.40664449,118.21,118.14,53.34650836]
[1644296234378,2.55502292,118.22,118.14,12.26]
[1644296234579,0.42496962,118.22,118.14,24.9552]
[1644296235177,0.42496962,118.22,118.14,25.2052]
[1644296235379,0.42496962,118.22,118.15,46.31333276]
[1644296235981,0.42496962,118.22,118.15,59.00743276]
[1644296236182,0.42496962,118.22,118.15,65.25743276]
[1644296236480,0.42496962,118.22,118.15,59.25743276]
[1644296236679,0.42496962,118.22,118.15,65.25743276]
[1644296236880,0.42496962,118.22,118.15,46.31333276]
[1644296237080,2.55502292,118.22,118.15,6.0]
[1644296237479,2.55502292,118.22,118.13,30.9556]
[1644296237679,2.55502292,118.22,118.13,31.2056]
[1644296238080,50.48098668,118.22,118.14,45.18358825]
[1644296238280,48.35093338,118.22,118.14,58.12828825]
[1644296238480,48.35093338,118.22,118.14,64.12828825]
[1644296238881,0.42496962,118.22,118.14,64.12828825]
[1644296239481,0.42496962,118.22,118.14,76.38828825]
[1644296240583,0.42496962,118.22,118.14,77.99991027]
[1644296242483,0.42496962,118.22,118.14,88.40791027]
[1644296243384,0.42496962,118.22,118.14,77.99991027]
[1644296244187,0.42496962,118.22,118.14,77.74991027]
[1644296245688,0.42496962,118.22,118.14,77.99991027]
[1644296246390,47.0983942,118.24,118.14,77.99991027]
[1644296247288,47.0983942,118.24,118.14,76.38828825]
[1644296248089,47.3483942,118.24,118.14,30.9547]
[1644296248390,62.1730475,118.24,118.12,12.6972]
[1644296248589,66.1345,118.23,118.12,18.6972]
[1644296248788,66.1345,118.23,118.11,47.8868]
[1644296248993,2.1300533,118.22,118.11,47.8868]
[1644296249191,40.37274182,118.21,118.12,42.68301576]
[1644296249690,12.6987,118.2,118.12,42.68301576]
[1644296249898,34.87847883,118.19,118.12,42.68301576]
[1644296250093,34.87847883,118.19,118.11,47.8868]
[1644296250292,34.87847883,118.19,118.1,12.6992]
[1644296250493,34.87847883,118.19,118.1,6.0]
[1644296250691,34.87847883,118.19,118.08,18.26]
[1644296251094,34.87847883,118.19,118.09,45.68488381]
[1644296251294,34.87847883,118.19,118.1,54.5818]
[1644296251498,34.87847883,118.19,118.11,33.92841633]
[1644296251693,33.37847883,118.19,118.11,39.92841633]
[1644296251894,33.37847883,118.19,118.11,40.17841633]
[1644296252694,33.37847883,118.19,118.12,12.6966]
[1644296252897,0.25,118.19,118.12,12.6966]
[1644296253094,35.5709,118.21,118.12,18.9466]
[1644296253294,35.8209,118.21,118.12,18.9466]
[1644296253696,22.5161,118.22,118.12,20.55671222]
[1644296253999,22.5161,118.22,118.15,12.6937]
[1644296254197,37.21012395,118.21,118.16,41.97977656]
[1644296254401,0.83946624,118.24,118.16,41.97977656]
[1644296254599,0.83946624,118.24,118.16,42.22977656]
[1644296255198,0.83946624,118.24,118.16,60.92287656]
[1644296255598,0.83946624,118.24,118.17,13.87011222]
[1644296255799,0.83946624,118.24,118.17,14.12011222]
[1644296255999,0.83946624,118.24,118.17,18.51]
[1644296256298,0.83946624,118.24,118.19,12.6885]
[1644296256523,40.66204509,118.24,118.18,36.54604828]
[1644296256821,40.66204509,118.24,118.18,36.79604828]
[1644296257022,0.83946624,118.24,118.18,36.79604828]
[1644296257724,0.83946624,118.24,118.18,49.48684828]
[1644296258325,0.66137868,118.24,118.18,49.48684828]
[1644296258730,1.20174145,118.23,118.18,49.48684828]
[1644296258926,1.20174145,118.23,118.18,55.48684828]
[1644296259128,0.66137868,118.24,118.19,66.0]
[1644296259427,0.66137868,118.24,118.2,14.29731222]
[1644296259428,0.438344,118.24,118.2,14.29731222]
[1644296259629,0.438344,118.24,118.21,12.26]
[1644296259827,0.438344,118.24,118.21,12.51]
[1644296260028,0.438344,118.24,118.22,3.51855728]
[1644296260230,0.56286744,118.33,118.22,16.45305728]
[1644296260435,0.56286744,118.33,118.23,12.26]
[1644296260633,2.40321784,118.32,118.23,28.447]
[1644296260832,2.40321784,118.32,118.23,28.697]
[1644296261229,43.15300275,118.31,118.24,39.2153792]
[1644296261440,43.15300275,118.31,118.25,12.6829]
[1644296261632,43.40300275,118.31,118.25,12.6829]
[1644296261931,43.40300275,118.31,118.25,12.9329]
[1644296262631,43.40300275,118.31,118.25,12.6829]
[1644296263836,43.40300275,118.31,118.22,12.26]
[1644296264036,45.53305605,118.31,118.22,12.26]
[1644296264240,45.53305605,118.31,118.2,23.4562]
[1644296264438,45.53305605,118.31,118.2,29.4562]
[1644296264638,12.69,118.28,118.2,60.66550581]
[1644296264838,45.57457998,118.27,118.2,37.20930581]
[1644296265038,45.57457998,118.27,118.19,24.4522]
[1644296265239,45.82457998,118.27,118.19,24.4522]
[1644296265438,45.82457998,118.27,118.19,12.6896]
[1644296265640,45.82457998,118.27,118.19,18.6896]
[1644296265837,60.64483328,118.27,118.18,12.26]
[1644296266038,60.64483328,118.27,118.18,46.70784309]
[1644296266240,58.51477998,118.27,118.18,40.70784309]
[1644296266842,58.51477998,118.27,118.18,40.95784309]
[1644296267041,58.51477998,118.27,118.18,40.70784309]
[1644296267642,58.51477998,118.27,118.18,46.70784309]
[1644296267842,58.51477998,118.27,118.19,1.61011222]
[1644296268044,58.51477998,118.27,118.18,59.64924309]
[1644296274346,58.51477998,118.27,118.18,59.39924309]
[1644296274550,58.51477998,118.27,118.18,18.6914]
[1644296274749,60.64483328,118.27,118.17,24.9528]
[1644296275350,58.51477998,118.27,118.17,24.9528]
[1644296275547,57.38878573,118.27,118.18,43.01215649]
[1644296276650,12.9402,118.27,118.18,43.01215649]
[1644296276849,12.9402,118.27,118.19,12.6904]
[1644296277259,15.0702533,118.27,118.16,77.8811]
[1644296277453,26.4502533,118.27,118.16,12.26]
[1644296277652,26.4502533,118.27,118.16,18.26]
[1644296278252,12.6937,118.24,118.17,39.10794265]
[1644296278754,24.079,118.26,118.17,39.10794265]
[1644296279253,24.079,118.26,118.17,39.35794265]
[1644296279453,24.079,118.26,118.17,39.10794265]
[1644296279654,36.96251826,118.25,118.17,39.10794265]
[1644296280255,37.21251826,118.25,118.17,39.10794265]
[1644296280455,49.90471826,118.25,118.17,51.80074265]
[1644296281053,49.90471826,118.25,118.17,12.6928]
[1644296281455,49.90471826,118.25,118.16,36.7211]
[1644296281456,49.90471826,118.25,118.16,49.4151]
[1644296282058,49.90471826,118.25,118.17,41.93810532]
[1644296282457,12.9422,118.25,118.17,41.93810532]
[1644296283458,59.73898697,118.25,118.17,41.93810532]
[1644296283658,12.6922,118.25,118.17,41.93810532]
[1644296283859,12.6903,118.27,118.18,1.64212452]
[1644296284059,29.07675,118.3,118.18,13.90212452]
[1644296284259,1.69418909,118.3,118.18,58.49618627]
[1644296284459,2.40739844,118.29,118.19,15.34090529]
[1644296284658,44.49564573,118.28,118.2,49.08795672]
[1644296284860,44.49564573,118.28,118.21,12.6881]
[1644296285062,44.49564573,118.28,118.22,51.49973305]
[1644296285665,1.69418909,118.3,118.22,51.49973305]
[1644296286064,2.40662537,118.29,118.22,51.49973305]
[1644296286663,45.60041404,118.28,118.22,64.18733305]
[1644296287267,45.85041404,118.28,118.22,64.18733305]
[1644296287865,0.25,118.28,118.22,64.18733305]
[1644296288066,1.69418909,118.3,118.22,64.18733305]
[1644296288266,2.40667439,118.29,118.22,64.18733305]
[1644296288867,44.49631325,118.28,118.22,64.18733305]
[1644296289268,44.49631325,118.28,118.19,40.9478]
[1644296289467,2.40738622,118.27,118.2,6.0]
[1644296289667,2.40738622,118.27,118.19,6.0]
[1644296290190,47.6420763,118.26,118.2,41.15983974]
[1644296290389,2.40738622,118.27,118.2,41.15983974]
[1644296290588,12.6923,118.26,118.2,47.15983974]
[1644296290991,12.9423,118.26,118.2,47.15983974]
[1644296291389,12.9423,118.26,118.18,12.26]
[1644296291591,15.0723533,118.26,118.17,12.26]
[1644296291789,12.6952,118.23,118.16,12.6935]
[1644296292392,12.6952,118.23,118.17,46.83967078]
[1644296294292,49.53334874,118.23,118.17,46.83967078]
[1644296296294,49.78334874,118.23,118.17,46.83967078]
[1644296296793,49.78334874,118.23,118.15,24.9554]
[1644296297797,49.78334874,118.23,118.16,43.95221036]
[1644296298897,12.9452,118.23,118.16,43.95221036]
[1644296299899,40.72412295,118.22,118.16,43.95221036]
[1644296300504,53.42002295,118.22,118.16,43.95221036]
[1644296302600,12.6959,118.22,118.16,43.95221036]
[1644296304102,12.9459,118.22,118.16,43.95221036]
[1644296305403,43.88988896,118.21,118.16,43.95221036]
[1644296305805,12.9459,118.22,118.16,43.95221036]
[1644296306504,12.9459,118.22,118.16,56.64691036]
[1644296306703,0.25,118.22,118.16,56.64691036]
[1644296307104,27.07514684,118.24,118.16,56.64691036]
[1644296307304,24.668,118.24,118.16,56.64691036]
[1644296307504,24.918,118.24,118.16,56.64691036]
[1644296308208,0.25,118.24,118.16,68.90691036]
[1644296308404,0.25,118.24,118.16,74.90691036]
[1644296308605,42.32998321,118.26,118.16,74.90691036]
[1644296309706,79.65158321,118.26,118.16,74.90691036]
[1644296310109,79.65158321,118.26,118.16,68.90691036]
[1644296311010,4.81399569,118.25,118.16,68.90691036]
[1644296311309,50.14785943,118.24,118.16,68.90691036]
[1644296312209,50.39785943,118.24,118.16,68.90691036]
[1644296317836,50.39785943,118.24,118.16,24.9547]
[1644296318235,61.48500627,118.24,118.16,24.9547]
[1644296318437,61.48500627,118.24,118.16,12.26]
[1644296318835,2.41248034,118.23,118.16,12.26]
[1644296319035,39.69573308,118.22,118.16,47.43314285]
[1644296319836,39.69573308,118.22,118.16,60.12804285]
[1644296320037,12.6945,118.23,118.16,60.12804285]
[1644296320235,12.9445,118.23,118.16,60.12804285]
[1644296320937,43.86587825,118.22,118.16,60.12804285]
[1644296321738,12.9445,118.23,118.16,60.12804285]
[1644296322840,52.1718326,118.23,118.16,60.12804285]
[1644296325744,12.9445,118.23,118.16,60.12804285]
[1644296326346,15.10024684,118.24,118.16,61.78227616]
[1644296326548,2.40714684,118.24,118.16,67.78227616]
[1644296326745,2.40714684,118.25,118.16,67.78227616]
[1644296326946,42.84912044,118.25,118.16,67.78227616]
[1644296327145,40.43558987,118.25,118.16,66.12804285]
[1644296327745,2.40714684,118.25,118.16,66.12804285]
[1644296327946,2.40714684,118.25,118.16,67.78227616]
[1644296328146,5.07036232,118.25,118.16,91.05547616]
[1644296328347,5.07036232,118.25,118.16,89.40124285]
[1644296328547,2.65714684,118.25,118.16,89.40124285]
[1644296328746,38.1059086,118.25,118.16,89.40124285]
[1644296329749,50.7980086,118.25,118.16,89.40124285]
[1644296329948,50.7980086,118.25,118.16,24.9549]
[1644296329949,2.1300533,118.24,118.16,24.9549]
[1644296330148,12.8260533,118.24,118.14,12.26]
[1644296330350,4.82064152,118.23,118.11,24.4732]
[1644296330549,0.3232413,118.22,118.11,36.7332]
[1644296330753,4.86044144,118.22,118.11,36.7332]
[1644296330951,42.3389,118.19,118.08,47.2945654]
[1644296331149,42.3389,118.19,118.08,59.5545654]
[1644296331150,35.67415543,118.17,118.08,59.5545654]
[1644296331452,35.67415543,118.17,118.08,47.2945654]
[1644296331849,24.8378,118.18,118.08,72.2563654]
[1644296332048,24.8378,118.18,118.08,79.9022488]
[1644296332249,24.8378,118.18,118.08,73.9022488]
[1644296332849,66.36322699,118.18,118.08,73.9022488]
[1644296333250,12.7003,118.17,118.08,73.9022488]
[1644296333452,40.8654656,118.16,118.08,73.9022488]
[1644296334050,41.1154656,118.16,118.08,73.9022488]
[1644296334850,12.703,118.14,118.08,73.9022488]
[1644296335049,41.1154656,118.16,118.08,73.9022488]
[1644296336958,12.7018,118.15,118.08,73.9022488]
[1644296337356,67.1791,118.18,118.08,79.9022488]
[1644296337559,67.1791,118.18,118.08,73.9022488]
[1644296337755,67.4291,118.18,118.08,73.9022488]
[1644296338257,111.2297641,118.18,118.08,73.9022488]
[1644296338457,111.2297641,118.18,118.08,72.2563654]
[1644296338757,12.7009,118.16,118.08,72.2563654]
[1644296338959,52.89089011,118.16,118.08,72.2563654]
[1644296339459,12.7009,118.16,118.08,72.2563654]
[1644296339657,25.26214684,118.21,118.08,80.15754083]
[1644296339857,12.6967,118.2,118.09,23.3949]
[1644296340056,45.5731,118.21,118.12,12.6958]
[1644296340258,4.53720014,118.25,118.13,12.26]
[1644296340456,22.7181,118.25,118.13,43.73149664]
[1644296340658,22.7181,118.25,118.14,42.3077]
[1644296340857,44.71854684,118.26,118.15,12.26]
[1644296341059,12.6914,118.25,118.15,37.25057543]
[1644296341461,12.6914,118.25,118.16,38.23547177]
[1644296341659,2.40714684,118.27,118.17,12.26]
[1644296341962,29.08463593,118.3,118.18,1.65117543]
[1644296342159,29.08463593,118.3,118.19,12.26]
[1644296342360,4.81198755,118.29,118.19,12.26]
[1644296342660,40.5881065,118.28,118.2,34.9359643]
[1644296342861,53.2761065,118.28,118.21,12.26]
[1644296343059,53.5261065,118.28,118.22,40.00458838]
[1644296343259,53.2761065,118.28,118.22,40.00458838]
[1644296343460,12.688,118.28,118.22,40.00458838]
[1644296344662,12.938,118.28,118.22,40.00458838]
[1644296346360,46.52584181,118.27,118.22,40.00458838]
[1644296346762,12.688,118.28,118.22,40.00458838]
[1644296346961,1.69418909,118.3,118.23,12.26]
[1644296347163,1.69418909,118.3,118.23,19.91117543]
[1644296347362,1.69418909,118.3,118.23,20.16117543]
[1644296347562,1.69418909,118.3,118.24,1.65117543]
[1644296347762,1.69418909,118.3,118.25,48.18813597]
[1644296348762,1.69418909,118.3,118.25,61.12113597]
[1644296349261,1.69418909,118.3,118.25,60.87113597]
[1644296349765,1.69418909,118.3,118.25,61.12113597]
[1644296350066,1.69418909,118.3,118.25,60.87113597]
[1644296350663,1.94418909,118.3,118.26,1.65117543]
[1644296350863,1.94418909,118.3,118.25,60.87113597]
[1644296350864,1.94418909,118.3,118.27,24.941]
[1644296351065,1.94418909,118.3,118.28,3.03219997]
[1644296351469,1.94418909,118.3,118.29,35.35067401]
[1644296351766,0.65156238,118.3,118.29,47.61067401]
[1644296352164,14.83019002,118.38,118.29,47.61067401]
[1644296352563,0.20650784,118.38,118.29,47.61067401]
[1644296352965,35.27700648,118.37,118.29,47.61067401]
[1644296353165,35.27700648,118.37,118.3,12.6775]
[1644296353365,0.20650784,118.38,118.31,48.40712335]
[1644296353565,0.06858388,118.33,118.31,12.26]
[1644296353766,0.06858388,118.33,118.32,3.03219997]
[1644296353966,0.06858388,118.33,118.32,15.29219997]
[1644296356366,0.06858388,118.33,118.32,15.54219997]
[1644296356766,0.00858388,118.33,118.32,17.19456659]
[1644296356968,0.00858388,118.33,118.32,46.53536659]
[1644296357769,0.00858388,118.33,118.32,88.77526659]
[1644296358369,0.00858388,118.33,118.32,88.52526659]
[1644296358571,0.00858388,118.33,118.32,38.63299997]
[1644296358975,0.00858388,118.33,118.32,40.28650382]
[1644296359777,0.00858388,118.33,118.32,40.53650382]
[1644296360583,0.00858388,118.33,118.32,46.53650382]
[1644296361381,71.77578706,118.44,118.33,37.28660651]
[1644296361579,71.77578706,118.44,118.34,12.26]
[1644296361780,71.77578706,118.44,118.35,44.54106749]
[1644296362080,36.77958344,118.44,118.35,44.54106749]
[1644296363082,79.85599623,118.44,118.35,44.54106749]
[1644296364288,67.18219623,118.44,118.35,44.54106749]
[1644296364484,67.18219623,118.44,118.37,37.28660651]
[1644296365085,67.43219623,118.44,118.37,37.28660651]
[1644296365600,24.35578344,118.44,118.37,37.28660651]
[1644296368802,38.20359399,118.43,118.37,37.28660651]
[1644296369003,24.35578344,118.44,118.37,37.28660651]
[1644296369205,24.10578344,118.44,118.37,56.20610651]
[1644296369505,0.55018344,118.44,118.38,12.26]
[1644296369705,0.55018344,118.44,118.38,12.51]
[1644296370005,0.55018344,118.44,118.39,40.89455628]
[1644296370205,0.55018344,118.44,118.39,53.15455628]
[1644296372305,44.17297061,118.44,118.39,12.26]
[1644296372504,44.17297061,118.44,118.37,6.0]
[1644296372505,44.17297061,118.44,118.37,18.26]
[1644296372705,44.42297061,118.44,118.37,6.0]
[1644296372906,0.80018344,118.44,118.36,12.26]
[1644296373110,0.80018344,118.44,118.36,18.26]
[1644296373306,0.55018344,118.44,118.36,18.26]
[1644296373506,0.55018344,118.44,118.36,32.58071629]
[1644296373905,0.55018344,118.44,118.37,48.17903143]
[1644296374110,0.55018344,118.44,118.38,12.26]
[1644296374306,0.55018344,118.44,118.39,34.54844911]
[1644296374506,0.55018344,118.44,118.39,46.80844911]
[1644296374705,0.55018344,118.44,118.39,47.05844911]
[1644296374905,0.55018344,118.44,118.39,59.72554911]
[1644296375507,0.55018344,118.44,118.39,65.72554911]
[1644296375710,0.55018344,118.44,118.39,77.63854911]
[1644296375711,0.27433552,118.44,118.39,77.63854911]
[1644296375907,0.27433552,118.44,118.39,43.0901]
[1644296376807,0.27433552,118.44,118.39,24.423]
[1644296377008,0.27433552,118.44,118.39,18.26]
[1644296377807,0.27433552,118.44,118.39,12.26]
[1644296378211,0.27433552,118.44,118.39,18.26]
[1644296378410,0.27433552,118.44,118.39,12.26]
[1644296379408,1.47245946,118.44,118.37,36.6877]
[1644296379612,44.5912719,118.44,118.38,35.39038655]
[1644296379813,1.47245946,118.44,118.38,35.39038655]
[1644296380009,0.27433552,118.44,118.38,41.64038655]
[1644296380209,0.27433552,118.44,118.38,43.29100284]
[1644296380509,0.27433552,118.44,118.39,24.8207]
[1644296380714,0.27433552,118.44,118.4,12.26]
[1644296380909,0.27433552,118.44,118.4,59.04691055]
[1644296381811,0.27433552,118.44,118.39,6.0]
[1644296382012,1.47245946,118.44,118.38,12.26]
[1644296382209,1.47245946,118.44,118.38,6.25]